[Event "2. Itzehoer Schach Open"]
[Site "Itzehoe, Germany"]
[Date "2023.04.30"]
[Round "3.31"]
[White "Schulze, Tim"]
[Black "Lorenz, Felix"]
[Result "1/2-1/2"]
[TimeControl "90 min / 40 Züge + 30 min + 30 Sek pro Zug"]
[WhiteElo "1663"]
[BlackElo "1128"]

1. d4 {[%clk 01:27:55]} {[%emt 00:03:05]} d5 {[%clk 01:30:58]} {[%emt
00:00:02]} 2. c4 {[%clk 01:28:13]} {[%emt 00:00:12]} e5 {[%clk 01:31:17]}
{[%emt 00:00:11]} 3. cxd5 {[%clk 01:28:29]} {[%emt 00:00:14]} Qxd5 {[%clk
01:31:42]} {[%emt 00:00:06]} 4. Nf3 {[%clk 01:28:52]} {[%emt 00:00:07]} Nc6
{[%clk 01:31:38]} {[%emt 00:00:34]} 5. Nc3 {[%clk 01:28:33]} {[%emt 00:00:49]}
Bb4 {[%clk 01:30:48]} {[%emt 00:01:20]} 6. a3 {[%clk 01:26:38]} {[%emt
00:02:25]} Bxc3+ {[%clk 01:29:44]} {[%emt 00:01:35]} 7. bxc3 {[%clk 01:27:06]}
{[%emt 00:00:02]} e4 {[%clk 01:28:52]} {[%emt 00:01:22]} 8. Nd2 {[%clk
01:24:52]} {[%emt 00:02:44]} e3 {[%clk 01:27:54]} {[%emt 00:01:28]} 9. fxe3
{[%clk 01:24:39]} {[%emt 00:00:44]} Nf6 {[%clk 01:25:35]} {[%emt 00:02:49]} 10.
Qb3 {[%clk 01:22:35]} {[%emt 00:02:33]} O-O {[%clk 01:21:53]} {[%emt 00:04:13]}
11. Qxd5 {[%clk 01:20:32]} {[%emt 00:02:33]} Nxd5 {[%clk 01:22:17]} {[%emt
00:00:06]} 12. Nb1 {[%clk 01:20:36]} {[%emt 00:00:25]} Bf5 {[%clk 01:20:16]}
{[%emt 00:02:31]} 13. Bd2 {[%clk 01:20:52]} {[%emt 00:00:13]} Rfe8 {[%clk
01:20:20]} {[%emt 00:00:28]} 14. Kf2 {[%clk 01:21:03]} {[%emt 00:00:18]} Be4
{[%clk 01:19:18]} {[%emt 00:01:32]} 15. c4 {[%clk 01:21:12]} {[%emt 00:00:21]}
Nf6 {[%clk 01:19:18]} {[%emt 00:00:31]} 16. h3 {[%clk 01:16:47]} {[%emt
00:04:54]} a5 {[%clk 01:12:09]} {[%emt 00:07:40]} 17. Nc3 {[%clk 01:16:55]}
{[%emt 00:00:21]} a4 {[%clk 01:08:34]} {[%emt 00:04:05]} 18. Rg1 {[%clk
01:15:04]} {[%emt 00:02:21]} Na5 {[%clk 01:07:58]} {[%emt 00:01:06]} 19. c5
{[%clk 01:04:08]} {[%emt 00:11:27]} Nb3 {[%clk 01:04:04]} {[%emt 00:04:23]} 20.
Ra2 {[%clk 01:04:09]} {[%emt 00:00:29]} Nxd2 {[%clk 00:57:55]} {[%emt
00:06:39]} 21. Rxd2 {[%clk 01:04:21]} {[%emt 00:00:18]} Nd5 {[%clk 00:56:48]}
{[%emt 00:01:37]} 22. Nxd5 {[%clk 01:01:27]} {[%emt 00:03:24]} Bxd5 {[%clk
00:57:14]} {[%emt 00:00:04]} 23. g4 {[%clk 01:01:20]} {[%emt 00:00:38]} b5
{[%clk 00:57:19]} {[%emt 00:00:25]} 24. cxb6 {[%clk 01:01:28]} {[%emt
00:00:21]} cxb6 {[%clk 00:57:45]} {[%emt 00:00:05]} 25. Bg2 {[%clk 01:01:42]}
{[%emt 00:00:15]} Bxg2 {[%clk 00:57:33]} {[%emt 00:00:42]} 26. Rxg2 {[%clk
01:02:06]} {[%emt 00:00:06]} b5 {[%clk 00:57:55]} {[%emt 00:00:08]} 27. Rb2
{[%clk 01:02:29]} {[%emt 00:00:07]} Reb8 {[%clk 00:56:54]} {[%emt 00:01:30]} 28.
Rb4 {[%clk 01:00:07]} {[%emt 00:02:52]} Ra7 {[%clk 00:53:47]} {[%emt 00:03:37]}
29. d5 {[%clk 00:59:02]} {[%emt 00:01:34]} Rc7 {[%clk 00:52:23]} {[%emt
00:01:54]} 30. e4 {[%clk 00:54:42]} {[%emt 00:04:52]} Rc4 {[%clk 00:49:01]}
{[%emt 00:03:50]} 31. Rg3 {[%clk 00:37:41]} {[%emt 00:17:31]} Rxb4 {[%clk
00:48:25]} {[%emt 00:01:06]} 32. axb4 {[%clk 00:38:10]} {[%emt 00:00:02]} Kf8
{[%clk 00:43:49]} {[%emt 00:05:06]} 33. Rc3 {[%clk 00:37:28]} {[%emt 00:01:12]}
Ke8 {[%clk 00:39:21]} {[%emt 00:04:58]} 34. Ke3 {[%clk 00:37:30]} {[%emt
00:00:28]} Kd7 {[%clk 00:39:30]} {[%emt 00:00:21]} 35. Kd4 {[%clk 00:37:49]}
{[%emt 00:00:11]} Rc8 {[%clk 00:39:23]} {[%emt 00:00:37]} 36. Rc5 {[%clk
00:29:18]} {[%emt 00:09:02]} Rxc5 {[%clk 00:38:16]} {[%emt 00:01:38]} 37. bxc5
{[%clk 00:29:32]} {[%emt 00:00:15]} a3 {[%clk 00:38:30]} {[%emt 00:00:16]} 38.
Kc3 {[%clk 00:26:58]} {[%emt 00:03:03]} b4+ {[%clk 00:34:14]} {[%emt 00:04:47]}
39. Kb3 {[%clk 00:27:26]} {[%emt 00:00:02]} f6 {[%clk 00:34:31]} {[%emt
00:00:14]} 40. Ka2 {[%clk 00:21:22]} {[%emt 00:06:34]} 1/2-1/2

[ePGN "0.1;DGT LiveChess/2.2.5"]

[Event "2. Itzehoer Schach Open"]
[Site "Itzehoe, Germany"]
[Date "2023.04.30"]
[Round "3.43"]
[White "Scheele, Justus"]
[Black "Beth, Felix"]
[Result "0-1"]
[TimeControl "90 min für 40 Züge, Rest 30 min + 30 Sek pro Zug"]
[WhiteElo "1098"]
[BlackElo "1498"]

1. e4 {[%clk 01:30:31]} {[%emt 00:00:29]} Nc6 {[%clk 01:30:56]} {[%emt
00:00:05]} 2. d4 {[%clk 01:30:17]} {[%emt 00:00:43]} e6 {[%clk 01:31:22]}
{[%emt 00:00:04]} 3. Nf3 {[%clk 01:29:41]} {[%emt 00:01:06]} b6 {[%clk
01:31:49]} {[%emt 00:00:04]} 4. Nc3 {[%clk 01:28:54]} {[%emt 00:01:16]} Bb4
{[%clk 01:32:15]} {[%emt 00:00:05]} 5. d5 {[%clk 01:28:44]} {[%emt 00:00:39]}
exd5 {[%clk 01:32:30]} {[%emt 00:00:15]} 6. exd5 {[%clk 01:29:02]} {[%emt
00:00:11]} Qe7+ {[%clk 01:32:57]} {[%emt 00:00:04]} 7. Be2 {[%clk 01:29:16]}
{[%emt 00:00:16]} Bxc3+ {[%clk 01:33:18]} {[%emt 00:00:09]} 8. bxc3 {[%clk
01:29:41]} {[%emt 00:00:05]} Ne5 {[%clk 01:33:29]} {[%emt 00:00:20]} 9. O-O
{[%clk 01:29:35]} {[%emt 00:00:35]} Nf6 {[%clk 01:33:24]} {[%emt 00:00:35]} 10.
Nxe5 {[%clk 01:28:49]} {[%emt 00:01:16]} Qxe5 {[%clk 01:33:50]} {[%emt
00:00:05]} 11. Bc4 {[%clk 01:28:52]} {[%emt 00:00:27]} O-O {[%clk 01:33:54]}
{[%emt 00:00:26]} 12. Re1 {[%clk 01:28:28]} {[%emt 00:00:55]} Qxc3 {[%clk
01:34:19]} {[%emt 00:00:04]} 13. Bb2 {[%clk 01:24:19]} {[%emt 00:04:37]} Qxb2
{[%clk 01:34:13]} {[%emt 00:00:38]} 14. Qd3 {[%clk 01:22:38]} {[%emt 00:02:11]}
Qb4 {[%clk 01:33:06]} {[%emt 00:01:36]} 15. Re3 {[%clk 01:21:34]} {[%emt
00:01:35]} Ng4 {[%clk 01:32:06]} {[%emt 00:01:31]} 16. Re4 {[%clk 01:19:04]}
{[%emt 00:02:59]} Qb2 {[%clk 01:32:23]} {[%emt 00:00:13]} 17. Rae1 {[%clk
01:18:46]} {[%emt 00:00:48]} Nh6 {[%clk 01:32:22]} {[%emt 00:00:31]} 18. Re8
{[%clk 01:17:20]} {[%emt 00:01:57]} Bb7 {[%clk 01:32:21]} {[%emt 00:00:31]} 19.
Qe3 {[%clk 01:16:04]} {[%emt 00:01:45]} Qxc2 {[%clk 01:32:29]} {[%emt
00:00:23]} 20. Qe7 {[%clk 01:13:59]} {[%emt 00:02:34]} Raxe8 {[%clk 01:32:31]}
{[%emt 00:00:28]} 21. Qxe8 {[%clk 01:13:42]} {[%emt 00:00:46]} Qf5 {[%clk
01:31:42]} {[%emt 00:01:19]} 22. Re5 {[%clk 01:12:40]} {[%emt 00:01:33]} g6
{[%clk 01:31:29]} {[%emt 00:00:43]} 23. g3 {[%clk 01:09:51]} {[%emt 00:03:20]}
Rxe8 {[%clk 01:31:39]} {[%emt 00:00:20]} 0-1

[Event "2. Itzehoer Schach Open"]
[Site "Itzehoe, Germany"]
[Date "2023.04.30"]
[Round "3.47"]
[White "Knudsen, Frank"]
[Black "Drozd, Maciej"]
[Result "0-1"]
[TimeControl "90 min für 40 Züge, Rest 30 min + 30 Sek pro Zug"]
[WhiteElo "940"]
[BlackElo "1334"]

1. e4 {[%clk 01:29:11]} {[%emt 00:01:48]} c5 {[%emt 00:00:06]} 2. Nf3 {[%clk
01:29:33]} {[%emt 00:00:04]} d6 {[%clk 01:31:21]} {[%emt 00:00:07]} 3. d4
{[%clk 01:29:22]} {[%emt 00:00:41]} cxd4 {[%clk 01:31:46]} {[%emt 00:00:06]} 4.
Nxd4 {[%clk 01:29:27]} {[%emt 00:00:24]} Nf6 {[%clk 01:32:08]} {[%emt
00:00:07]} 5. Nc3 {[%clk 01:29:20]} {[%emt 00:00:39]} g6 {[%clk 01:32:31]}
{[%emt 00:00:07]} 6. Be3 {[%clk 01:28:00]} {[%emt 00:01:50]} Bg7 {[%clk
01:32:52]} {[%emt 00:00:08]} 7. Bd3 {[%clk 01:25:01]} {[%emt 00:03:29]} O-O
{[%clk 01:33:08]} {[%emt 00:00:14]} 8. O-O {[%clk 01:24:48]} {[%emt 00:00:43]}
Ng4 {[%clk 01:33:08]} {[%emt 00:00:29]} 9. h3 {[%clk 01:23:47]} {[%emt
00:01:32]} Nxe3 {[%clk 01:33:31]} {[%emt 00:00:07]} 10. fxe3 {[%clk 01:24:01]}
{[%emt 00:00:16]} Nc6 {[%clk 01:33:51]} {[%emt 00:00:11]} 11. b3 {[%clk
01:16:51]} {[%emt 00:07:40]} Nxd4 {[%clk 01:34:09]} {[%emt 00:00:11]} 12. exd4
{[%clk 01:16:43]} {[%emt 00:00:38]} Bxd4+ {[%clk 01:34:32]} {[%emt 00:00:07]}
13. Kh1 {[%clk 01:15:59]} {[%emt 00:01:14]} Bxc3 {[%clk 01:34:53]} {[%emt
00:00:08]} 14. Rb1 {[%clk 01:15:53]} {[%emt 00:00:37]} Be6 {[%clk 01:34:44]}
{[%emt 00:00:39]} 15. Bc4 {[%clk 01:15:46]} {[%emt 00:00:38]} Bxc4 {[%clk
01:34:45]} {[%emt 00:00:28]} 16. bxc4 {[%clk 01:16:06]} {[%emt 00:00:09]} b6
{[%clk 01:34:44]} {[%emt 00:00:33]} 17. Rb3 {[%clk 01:15:32]} {[%emt 00:01:04]}
Bg7 {[%clk 01:34:52]} {[%emt 00:00:21]} 18. Rd3 {[%clk 01:14:36]} {[%emt
00:01:26]} Rc8 {[%clk 01:35:10]} {[%emt 00:00:12]} 19. Qe2 {[%clk 01:13:33]}
{[%emt 00:01:33]} Qc7 {[%clk 01:34:52]} {[%emt 00:00:48]} 20. Ra3 {[%clk
01:07:06]} {[%emt 00:06:58]} a5 {[%clk 01:30:41]} {[%emt 00:04:40]} 21. Ra4
{[%clk 01:05:09]} {[%emt 00:02:27]} Qc6 {[%clk 01:30:52]} {[%emt 00:00:19]} 22.
Ra3 {[%clk 01:04:08]} {[%emt 00:01:32]} Qxc4 {[%clk 01:31:10]} {[%emt
00:00:11]} 23. Qxc4 {[%clk 01:03:35]} {[%emt 00:01:03]} Rxc4 {[%clk 01:31:33]}
{[%emt 00:00:07]} 24. Rb3 {[%clk 01:02:43]} {[%emt 00:01:22]} Rxc2 {[%clk
01:31:36]} {[%emt 00:00:27]} 25. Rxb6 {[%clk 01:03:02]} {[%emt 00:00:11]} Rxa2
{[%clk 01:31:56]} {[%emt 00:00:10]} 26. Rb7 {[%clk 01:00:35]} {[%emt 00:02:56]}
Bf6 {[%clk 01:31:54]} {[%emt 00:00:32]} 27. Rfb1 {[%clk 00:58:06]} {[%emt
00:02:59]} Ra1 {[%clk 01:30:26]} {[%emt 00:01:58]} 28. Rxa1 {[%clk 00:57:40]}
{[%emt 00:00:40]} Bxa1 {[%clk 01:30:56]} 29. Ra7 {[%clk 00:54:51]} {[%emt
00:03:35]} Bc3 {[%clk 01:31:09]} {[%emt 00:00:16]} 30. Rxe7 {[%clk 00:54:02]}
{[%emt 00:01:20]} Ra8 {[%clk 01:31:32]} {[%emt 00:00:08]} 31. Rd7 {[%clk
00:53:41]} {[%emt 00:00:49]} Be5 {[%clk 01:31:50]} {[%emt 00:00:13]} 32. Rb7
{[%clk 00:53:27]} {[%emt 00:00:44]} a4 {[%clk 01:32:14]} {[%emt 00:00:06]} 33.
g4 {[%clk 00:52:18]} {[%emt 00:01:40]} a3 {[%clk 01:32:37]} {[%emt 00:00:07]}
34. Rc7 {[%clk 00:50:24]} {[%emt 00:02:23]} a2 {[%clk 01:32:56]} {[%emt
00:00:10]} 35. Rc1 {[%clk 00:50:50]} {[%emt 00:00:05]} a1=Q {[%clk 01:33:19]}
{[%emt 00:00:07]} 36. Rxa1 {[%emt 00:00:10]} Rxa1+ {[%emt 00:00:05]} 37. Kg2
{[%clk 00:50:59]} {[%emt 00:00:06]} Ra3 {[%clk 01:33:35]} {[%emt 00:00:14]} 38.
g5 {[%clk 00:51:05]} {[%emt 00:00:25]} Kf8 {[%clk 01:33:50]} {[%emt 00:00:14]}
39. h4 {[%clk 00:51:19]} {[%emt 00:00:16]} Ke7 {[%clk 01:34:11]} {[%emt
00:00:09]} 40. h5 {[%clk 00:51:36]} {[%emt 00:00:13]} gxh5 {[%clk 01:34:32]}
{[%emt 00:00:09]} 41. g6 {[%emt 00:00:10]} hxg6 {[%emt 00:00:09]} 42. Kf2
{[%clk 00:51:32]} {[%emt 00:00:11]} Ke6 {[%clk 01:34:53]} {[%emt 00:00:13]} 43.
Ke2 {[%clk 00:51:40]} {[%emt 00:00:10]} Bf4 {[%clk 01:35:23]} 44. e5 {[%clk
00:51:49]} {[%emt 00:00:25]} Kxe5 {[%clk 01:35:49]} {[%emt 00:00:12]} 45. Kf2
{[%clk 00:52:12]} {[%emt 00:00:08]} d5 {[%clk 01:36:10]} {[%emt 00:00:09]} 46.
Kg2 {[%clk 00:52:35]} {[%emt 00:00:06]} d4 {[%clk 01:36:32]} {[%emt 00:00:09]}
47. Kf2 {[%clk 00:52:57]} {[%emt 00:00:07]} d3 {[%clk 01:36:50]} {[%emt
00:00:12]} 48. Ke1 {[%clk 00:53:23]} {[%emt 00:00:04]} d2+ {[%clk 01:37:10]}
{[%emt 00:00:10]} 49. Kd1 {[%clk 00:53:40]} {[%emt 00:00:12]} Ra1+ {[%clk
01:37:35]} {[%emt 00:00:06]} 50. Ke2 {[%clk 00:53:50]} {[%emt 00:00:20]} d1=Q+
{[%clk 01:37:51]} {[%emt 00:00:14]} 51. Kf2 {[%clk 00:54:11]} {[%emt 00:00:09]}
Ra2# {[%clk 01:37:35]} {[%emt 00:00:16]} 0-1

[Event "2. Itzehoer Schach Open"]
[Site "Itzehoe, Germany"]
[Date "2023.04.30"]
[Round "3.48"]
[White "Tobis, Julius"]
[Black "Greiner, Jan Oluf"]
[Result "1-0"]
[TimeControl "90 min für 40 Züge, Rest 30 min + 30 Sek pro Zug"]
[WhiteElo "1334"]
[BlackElo "960"]

1. e4 {[%clk 01:30:54]} {[%emt 00:00:05]} e5 {[%clk 01:30:39]} {[%emt
00:00:21]} 2. Nf3 {[%clk 01:31:05]} {[%emt 00:00:19]} Nc6 {[%clk 01:31:00]}
{[%emt 00:00:10]} 3. Bb5 {[%clk 01:31:27]} {[%emt 00:00:08]} Nf6 {[%clk
01:30:59]} {[%emt 00:00:30]} 4. O-O {[%clk 01:30:53]} {[%emt 00:01:04]} Bc5
{[%clk 01:30:59]} {[%emt 00:00:31]} 5. d3 {[%clk 01:29:16]} {[%emt 00:02:06]}
d6 {[%clk 01:31:09]} {[%emt 00:00:19]} 6. h3 {[%clk 01:29:35]} {[%emt
00:00:12]} Bd7 {[%clk 01:31:11]} {[%emt 00:00:28]} 7. c3 {[%clk 01:29:27]}
{[%emt 00:00:39]} a6 {[%clk 01:30:38]} {[%emt 00:01:02]} 8. Ba4 {[%clk
01:29:50]} {[%emt 00:00:07]} Qe7 {[%clk 01:29:51]} {[%emt 00:01:17]} 9. Re1
{[%clk 01:29:17]} {[%emt 00:01:03]} h6 {[%clk 01:29:00]} {[%emt 00:01:21]} 10.
Bc2 {[%clk 01:28:40]} {[%emt 00:01:07]} O-O-O {[%clk 01:28:15]} {[%emt
00:01:15]} 11. a4 {[%clk 01:28:06]} {[%emt 00:01:05]} Be6 {[%clk 01:26:15]}
{[%emt 00:02:29]} 12. b4 {[%clk 01:26:45]} {[%emt 00:01:51]} Ba7 {[%clk
01:26:28]} {[%emt 00:00:17]} 13. b5 {[%clk 01:22:42]} {[%emt 00:04:34]} Nb8
{[%clk 01:23:10]} {[%emt 00:03:47]} 14. c4 {[%clk 01:21:21]} {[%emt 00:01:51]}
g5 {[%clk 01:22:54]} {[%emt 00:00:46]} 15. Nc3 {[%clk 01:14:11]} {[%emt
00:07:39]} g4 {[%clk 01:20:08]} {[%emt 00:03:17]} 16. Nh4 {[%clk 01:13:54]}
{[%emt 00:00:48]} gxh3 {[%clk 01:19:53]} {[%emt 00:00:44]} 17. g3 {[%clk
01:14:23]} {[%emt 00:00:01]} Ng4 {[%clk 01:16:36]} {[%emt 00:03:43]} 18. Be3
{[%clk 01:06:45]} Nxe3 {[%clk 01:12:47]} {[%emt 00:12:31]} 19. fxe3 {[%clk
01:06:58]} {[%emt 00:00:17]} Rdg8 {[%clk 01:10:13]} {[%emt 00:03:04]} 20. Kh2
{[%clk 01:06:55]} {[%emt 00:00:32]} Qg5 {[%clk 01:08:35]} {[%emt 00:02:09]} 21.
Qf3 {[%clk 01:07:15]} {[%emt 00:00:10]} Rg7 {[%clk 01:07:39]} {[%emt 00:01:25]}
22. Nd1 {[%clk 01:05:00]} {[%emt 00:02:45]} Rhg8 {[%clk 01:07:25]} {[%emt
00:00:45]} 23. Rg1 {[%clk 00:59:21]} {[%emt 00:06:08]} Bg4 {[%clk 01:05:45]}
{[%emt 00:02:10]} 24. Qf2 {[%clk 00:58:21]} {[%emt 00:01:31]} Bxd1 {[%clk
01:03:45]} {[%emt 00:02:29]} 25. Raxd1 {[%clk 00:56:47]} {[%emt 00:02:05]} Bxe3
{[%clk 01:03:32]} {[%emt 00:00:43]} 26. Qe2 {[%clk 00:56:49]} {[%emt 00:00:28]}
Bxg1+ {[%clk 01:03:39]} {[%emt 00:00:24]} 27. Rxg1 {[%clk 00:57:16]} {[%emt
00:00:03]} Nd7 {[%clk 01:00:41]} {[%emt 00:03:27]} 28. Nf5 {[%clk 00:56:39]}
{[%emt 00:01:08]} Rg6 {[%clk 00:59:53]} {[%emt 00:01:17]} 29. Bb3 {[%clk
00:54:38]} {[%emt 00:02:31]} Kd8 {[%clk 00:53:39]} {[%emt 00:06:42]} 30. c5
{[%clk 00:47:17]} {[%emt 00:07:53]} Ke8 {[%clk 00:53:38]} {[%emt 00:00:31]} 31.
c6 {[%clk 00:47:34]} {[%emt 00:00:13]} bxc6 {[%clk 00:53:14]} {[%emt 00:00:54]}
32. bxa6 {[%clk 00:47:16]} {[%emt 00:00:48]} Qd8 {[%clk 00:52:13]} {[%emt
00:01:31]} 33. Rf1 {[%clk 00:46:20]} {[%emt 00:01:25]} Nf6 {[%clk 00:47:00]}
{[%emt 00:05:43]} 34. Qc2 {[%clk 00:43:36]} {[%emt 00:03:14]} Qa8 {[%clk
00:46:59]} {[%emt 00:00:30]} 35. Qc4 {[%clk 00:43:32]} {[%emt 00:00:35]} Rf8
{[%clk 00:44:58]} {[%emt 00:02:32]} 36. Nh4 {[%clk 00:38:37]} {[%emt 00:05:25]}
Ng4+ {[%clk 00:42:52]} {[%emt 00:02:36]} 37. Kxh3 {[%clk 00:37:14]} {[%emt
00:01:53]} Rg7 {[%clk 00:42:39]} {[%emt 00:00:42]} 38. Rf3 {[%clk 00:36:31]}
{[%emt 00:01:13]} h5 {[%clk 00:34:35]} {[%emt 00:08:34]} 39. Nf5 {[%clk
00:34:24]} {[%emt 00:02:38]} Rh7 {[%clk 00:33:48]} {[%emt 00:01:16]} 40. d4
{[%clk 00:33:37]} {[%emt 00:01:18]} Kd7 {[%clk 00:31:13]} {[%emt 00:03:05]} 41.
a5 {[%clk 00:31:18]} {[%emt 00:02:49]} d5 {[%clk 00:29:41]} {[%emt 00:02:02]}
42. exd5 {[%clk 00:30:10]} {[%emt 00:01:38]} cxd5 {[%clk 00:29:45]} {[%emt
00:00:26]} 43. Ba4+ {[%clk 00:30:26]} {[%emt 00:00:13]} Kd8 {[%clk 00:28:26]}
{[%emt 00:01:49]} 44. Qc5 {[%clk 00:30:00]} {[%emt 00:00:57]} Rhh8 {[%clk
00:26:02]} {[%emt 00:02:54]} 45. Qe7+ {[%clk 00:29:25]} {[%emt 00:01:05]} Kc8
{[%clk 00:26:26]} {[%emt 00:00:06]} 46. Bd7+ {[%clk 00:29:51]} {[%emt
00:00:04]} Kb8 {[%clk 00:26:48]} {[%emt 00:00:08]} 47. Rb3+ {[%clk 00:29:58]}
{[%emt 00:00:22]} Qb7 {[%clk 00:21:35]} {[%emt 00:05:44]} 48. Rxb7+ {[%clk
00:28:33]} {[%emt 00:01:55]} Ka8 {[%clk 00:21:57]} {[%emt 00:00:08]} 49. Qc5
{[%clk 00:28:27]} {[%emt 00:00:35]} Nf2+ {[%clk 00:22:05]} {[%emt 00:00:23]} 50.
Kg2 {[%clk 00:28:45]} {[%emt 00:00:12]} exd4 {[%clk 00:20:20]} {[%emt
00:02:15]} 51. Qa7# {[%clk 00:29:04]} {[%emt 00:00:10]} 1-0

[Event "2. Itzehoer Schach Open"]
[Site "Itzehoe, Germany"]
[Date "2023.04.30"]
[Round "3.38"]
[White "Lueders Vega, Iago Ernst"]
[Black "Schiller, Thomas"]
[Result "1/2-1/2"]
[TimeControl "90 min für 40 Züge, Rest 30 min + 30 Sek pro Zug"]
[WhiteElo "1333"]
[BlackElo "1678"]

1. e4 {[%clk 01:30:59]} {[%emt 01:16:57]} e5 {[%clk 01:30:51]} {[%emt
00:00:09]} 2. Nf3 {[%clk 01:31:13]} {[%emt 00:00:16]} Nc6 {[%clk 01:31:10]}
{[%emt 00:00:11]} 3. Bc4 {[%clk 01:31:35]} {[%emt 00:00:08]} Nf6 {[%clk
01:31:03]} {[%emt 00:00:36]} 4. d4 {[%clk 01:31:59]} {[%emt 00:00:06]} exd4
{[%clk 01:31:15]} {[%emt 00:00:19]} 5. e5 {[%clk 01:32:13]} {[%emt 00:00:16]}
Ne4 {[%clk 01:30:17]} {[%emt 00:01:27]} 6. Nxd4 {[%clk 01:32:11]} {[%emt
00:00:31]} Nc5 {[%clk 01:25:58]} {[%emt 00:04:49]} 7. Nxc6 {[%clk 01:32:09]}
{[%emt 00:00:33]} bxc6 {[%clk 01:26:04]} {[%emt 00:00:24]} 8. O-O {[%clk
01:31:54]} {[%emt 00:00:45]} d5 {[%clk 01:17:48]} {[%emt 00:08:46]} 9. exd6
{[%clk 01:32:10]} {[%emt 00:00:15]} cxd6 {[%clk 01:18:04]} {[%emt 00:00:14]} 10.
Re1+ {[%clk 01:31:01]} {[%emt 00:01:38]} Be7 {[%clk 01:18:25]} {[%emt
00:00:09]} 11. Bg5 {[%clk 01:30:29]} {[%emt 00:01:01]} Ne6 {[%clk 01:18:09]}
{[%emt 00:00:46]} 12. Bxe7 {[%clk 01:30:32]} {[%emt 00:00:27]} Qxe7 {[%clk
01:18:29]} {[%emt 00:00:11]} 13. Bxe6 {[%clk 01:27:39]} {[%emt 00:03:23]} Bxe6
{[%clk 01:18:12]} {[%emt 00:00:48]} 14. f4 {[%clk 01:27:11]} {[%emt 00:00:57]}
f5 {[%clk 01:13:09]} {[%emt 00:05:33]} 15. Qf3 {[%clk 01:26:06]} {[%emt
00:01:34]} Qd7 {[%clk 01:05:17]} {[%emt 00:08:23]} 16. Nc3 {[%clk 01:25:03]}
{[%emt 00:01:33]} 1/2-1/2

[Event "2. Itzehoer Schach Open"]
[Site "Itzehoe, Germany"]
[Date "2023.04.30"]
[Round "3.46"]
[White "Eichmann, Phillip"]
[Black "Hock, Reiner"]
[Result "1-0"]
[TimeControl "90 min für 40 Züge, Rest 30 min + 30 Sek pro Zug"]
[WhiteElo "1052"]
[BlackElo "1338"]

1. e4 {[%clk 01:30:59]} d5 {[%clk 01:30:01]} {[%emt 00:00:59]} 2. exd5 {[%clk
01:31:18]} {[%emt 00:00:11]} Qxd5 {[%clk 01:30:17]} {[%emt 00:00:14]} 3. Nc3
{[%clk 01:31:41]} {[%emt 00:00:08]} Qd8 {[%clk 01:30:37]} {[%emt 00:00:09]} 4.
d4 {[%clk 01:32:01]} {[%emt 00:00:11]} Nf6 {[%clk 01:30:53]} {[%emt 00:00:12]}
5. Nf3 {[%clk 01:32:21]} {[%emt 00:00:11]} Bg4 {[%clk 01:30:12]} {[%emt
00:01:11]} 6. Bc4 {[%clk 01:31:55]} {[%emt 00:00:55]} e6 {[%clk 01:30:24]}
{[%emt 00:00:19]} 7. a3 {[%clk 01:32:11]} {[%emt 00:00:15]} Be7 {[%clk
01:29:57]} {[%emt 00:00:55]} 8. Bf4 {[%clk 01:31:43]} {[%emt 00:00:59]} a6
{[%clk 01:29:19]} {[%emt 00:01:09]} 9. Be2 {[%clk 01:30:25]} {[%emt 00:01:47]}
O-O {[%clk 01:27:20]} {[%emt 00:02:29]} 10. Qd2 {[%clk 01:30:17]} {[%emt
00:00:38]} Bxf3 {[%clk 01:20:26]} {[%emt 00:07:23]} 11. Bxf3 {[%clk 01:30:36]}
{[%emt 00:00:12]} c6 {[%clk 01:20:26]} {[%emt 00:00:31]} 12. O-O {[%clk
01:28:24]} {[%emt 00:02:42]} Qb6 {[%clk 01:19:43]} {[%emt 00:01:13]} 13. Rab1
{[%clk 01:27:21]} {[%emt 00:01:32]} Rd8 {[%clk 01:19:52]} {[%emt 00:00:20]} 14.
Rfd1 {[%clk 01:27:26]} {[%emt 00:00:25]} Nbd7 {[%clk 01:18:23]} {[%emt
00:02:00]} 15. Be3 {[%clk 01:26:08]} {[%emt 00:01:48]} Nd5 {[%clk 01:18:02]}
{[%emt 00:00:50]} 16. Nxd5 {[%clk 01:26:01]} {[%emt 00:00:38]} cxd5 {[%clk
01:18:23]} {[%emt 00:00:08]} 17. Qd3 {[%clk 01:23:57]} {[%emt 00:02:35]} Rac8
{[%clk 01:17:53]} {[%emt 00:01:00]} 18. Rdc1 {[%clk 01:23:50]} {[%emt
00:00:38]} Nf6 {[%clk 01:16:52]} {[%emt 00:01:30]} 19. Bg5 {[%clk 01:22:35]}
{[%emt 00:01:44]} Re8 {[%clk 01:16:39]} {[%emt 00:00:43]} 20. c4 {[%clk
01:22:35]} {[%emt 00:00:31]} Qc7 {[%clk 01:10:34]} {[%emt 00:06:36]} 21. cxd5
{[%clk 01:21:40]} {[%emt 00:01:24]} Qd6 {[%clk 01:10:43]} {[%emt 00:00:21]} 22.
dxe6 {[%clk 01:21:22]} {[%emt 00:00:48]} Qxe6 {[%clk 01:10:22]} {[%emt
00:00:50]} 23. Rxc8 {[%clk 01:20:42]} {[%emt 00:01:10]} Rxc8 {[%clk 01:10:44]}
{[%emt 00:00:09]} 24. Bxb7 {[%clk 01:20:57]} {[%emt 00:00:15]} Rd8 {[%clk
01:10:48]} {[%emt 00:00:26]} 25. Bxa6 {[%clk 01:17:26]} {[%emt 00:04:02]} h6
{[%clk 01:08:11]} {[%emt 00:03:06]} 26. Bd2 {[%clk 01:15:11]} {[%emt 00:02:43]}
Bc5 {[%clk 01:04:57]} {[%emt 00:03:46]} 27. Bc3 {[%clk 01:09:51]} {[%emt
00:05:51]} Qb6 {[%clk 01:04:46]} {[%emt 00:00:40]} 28. dxc5 {[%clk 01:08:54]}
{[%emt 00:01:26]} Rxd3 {[%clk 01:03:41]} {[%emt 00:01:36]} 29. cxb6 {[%clk
01:09:15]} {[%emt 00:00:09]} Nd5 {[%clk 01:02:23]} {[%emt 00:01:48]} 30. Bxd3
{[%clk 01:09:12]} {[%emt 00:00:32]} 1-0